bitfinex/quotes_ETHUSD_20250106
["timestamp","ask_amount","ask_price","bid_price","bid_amount"]
[1736178343472,2.70584,3695.7,3695.6,35.156]
[1736178344584,2.70584,3695.7,3694.6,1.5481]
[1736178344585,2.70657,3694.7,3694.6,1.5481]
[1736178344779,2.70657,3694.7,3694.6,1.7041]
[1736178344985,2.70674,3694.5,3693.3,1.6055]
[1736178345204,1.51,3695.0,3693.4,0.18306654]
[1736178345391,0.02704769,3694.9,3693.5,1.6055]
[1736178345594,2.70692,3694.3,3693.6,0.20321685]
[1736178345908,2.7065,3694.8,3693.6,0.20321685]
[1736178345909,2.70695,3694.2,3693.7,1.5512]
[1736178346105,1.51,3695.0,3694.1,35.0]
[1736178346106,2.70688,3694.3,3694.1,35.0]
[1736178346484,2.70633,3695.1,3694.2,1.53516672]
[1736178346803,2.70678,3694.5,3694.2,1.53516672]
[1736178347012,2.70678,3694.5,3694.4,35.0]
[1736178347306,2.70678,3694.5,3694.4,35.156]
[1736178348508,2.70637,3695.0,3694.4,35.156]
[1736178348671,2.70637,3695.0,3694.6,1.5127]
[1736178349024,2.70646,3694.9,3694.6,1.5127]
[1736178349205,2.70652,3694.8,3694.6,1.5127]
[1736178349577,2.70652,3694.8,3694.7,35.0]
[1736178349782,2.70611,3695.4,3694.7,37.71757592]
[1736178350009,2.70608,3695.4,3694.8,0.02706201]
[1736178350192,2.73265769,3696.1,3694.9,1.5225]
[1736178350710,2.70618,3695.3,3694.9,1.5225]
[1736178350916,2.70614,3695.3,3694.9,1.67475]
[1736178351146,2.70614,3695.3,3695.2,35.0]
[1736178354602,2.70602,3695.5,3695.2,35.0]
[1736178355039,2.70602,3695.5,3695.3,0.02705833]
[1736178355248,2.70585,3695.7,3695.0,0.02705833]
[1736178355556,2.70584,3695.7,3695.6,35.0]
[1736178357671,2.70584,3695.7,3695.6,35.156]
[1736178360317,1.5143,3696.3,3695.6,36.6847]
[1736178360515,1.12083618,3696.5,3695.7,0.02705445]
[1736178360754,3.82613618,3696.5,3695.6,1.6847]
[1736178360958,2.70577,3695.8,3695.7,0.16847]
[1736178361457,2.70577,3695.8,3695.7,35.0]
[1736178361458,4.31337,3695.8,3695.7,35.0]
[1736178362251,2.70628,3695.1,3695.0,2.8804663]
[1736178362582,2.70628,3695.1,3695.0,3.0364663]
[1736178362938,2.70628,3695.1,3695.0,1.7614]
[1736178363462,2.70628,3695.1,3695.0,1.94024615]
[1736178363972,5.27571027,3696.1,3695.0,1.94024615]
[1736178363973,2.70615,3695.3,3695.0,1.94024615]
[1736178364177,2.7065,3694.8,3694.7,0.156]
[1736178364389,2.70598,3695.6,3694.8,1.6606]
[1736178364679,2.70621,3695.3,3694.8,1.6606]
[1736178365236,2.70621,3695.2,3694.8,1.6606]
[1736178365466,2.70621,3695.2,3694.9,0.18166]
[1736178365849,2.70628,3695.2,3694.9,0.18166]
[1736178367275,2.7061,3695.4,3695.0,0.02705992]
[1736178367478,1.6035,3696.0,3694.9,0.18166]
[1736178367684,1.6035,3696.0,3695.0,0.0270592]
[1736178367859,1.6035,3696.0,3695.0,0.22959112]
[1736178368055,1.63054769,3696.0,3695.0,0.20253192]
[1736178368264,2.70621,3695.3,3695.0,0.20253192]
[1736178368652,1.6035,3696.0,3695.0,0.20253192]
[1736178368882,2.70602,3695.5,3695.1,0.0270577]
[1736178369180,1.5521,3696.3,3695.1,0.0270577]
[1736178369354,2.70585,3695.7,3695.2,1.6286]
[1736178369543,2.70572,3695.9,3695.3,0.23811319]
[1736178369742,1.5521,3696.3,3695.3,0.23811319]
[1736178369743,2.70548,3696.2,3695.3,0.23811319]
[1736178369948,2.70603,3695.5,3695.3,0.23811319]
[1736178370183,2.70606,3695.4,3695.3,0.23811319]
[1736178370380,1.57914769,3696.3,3695.3,0.23811319]
[1736178370381,2.70578,3695.8,3695.3,0.23811319]
[1736178370560,2.70593,3695.6,3695.4,0.18667132]
[1736178370760,2.70599,3695.5,3695.4,0.18667132]
[1736178371159,2.70614,3695.3,3695.2,1.6286]
[1736178371361,2.70634,3695.1,3694.8,2.92985538]
[1736178371561,2.7062,3695.3,3694.9,0.1830605]
[1736178371887,2.7062,3695.3,3694.9,0.156]
[1736178372085,0.02704769,3696.2,3694.9,0.156]
[1736178372383,2.70606,3695.5,3695.0,0.42044162]
[1736178372588,0.02704769,3696.2,3695.0,0.42044162]
[1736178372790,2.73255769,3696.2,3694.9,0.156]
[1736178372962,2.70611,3695.4,3694.9,0.156]
[1736178373355,2.70611,3695.4,3695.0,0.02705868]
[1736178373555,1.5521,3696.3,3695.2,14.08]
[1736178373868,2.70583,3695.8,3695.2,0.55]
[1736178374060,2.70583,3695.8,3695.3,0.21086]
[1736178374463,2.73264769,3696.1,3695.1,1.5511]
[1736178375082,2.7058,3695.8,3695.2,0.156]
[1736178375411,2.70598,3695.6,3695.2,0.156]
[1736178375616,2.70603,3695.5,3695.2,0.156]
[1736178376054,2.70609,3695.4,3695.2,0.156]
[1736178376252,2.70584,3695.7,3695.2,0.156]
[1736178376495,2.7061,3695.4,3695.2,0.156]
[1736178377395,0.02704769,3696.2,3695.2,0.32671]
[1736178377703,2.70614,3695.3,3695.2,0.156]
[1736178379172,2.70621,3695.2,3694.9,0.02706026]
[1736178379395,2.70575,3695.9,3695.0,0.156]
[1736178379610,2.70614,3695.4,3695.0,0.156]
[1736178379792,2.70584,3695.8,3695.0,0.156]
[1736178380117,2.70587,3695.7,3695.2,1.5458]
[1736178380340,2.70587,3695.7,3695.3,0.02705578]
[1736178380889,2.70574,3695.9,3695.3,0.02705578]
[1736178381316,4.5521,3696.3,3695.3,0.55]
[1736178381504,2.70561,3696.1,3695.3,0.55]
[1736178381831,2.70563,3696.0,3695.4,0.233483]
[1736178382683,2.70578,3695.8,3695.4,0.233483]
[1736178382997,2.70578,3695.8,3695.5,0.02705495]
[1736178383387,2.70546,3696.3,3695.5,0.02705495]
[1736178383697,2.70578,3695.8,3695.5,0.02705495]
[1736178383893,2.70592,3695.6,3695.2,1.5458]
[1736178384097,1.5229,3695.9,3695.2,1.5458]
[1736178384418,2.70621,3695.2,3695.1,1.27475538]
[1736178384620,2.70621,3695.2,3695.1,0.156]
[1736178384806,2.70605,3695.5,3695.1,0.18306148]
[1736178385326,2.70562,3696.0,3695.2,1.6416]
[1736178385500,2.70562,3696.0,3695.3,0.02705611]
[1736178385822,2.70593,3695.6,3695.2,1.6416]
[1736178386026,2.70593,3695.6,3695.3,0.17976]
[1736178386389,2.70593,3695.6,3695.4,0.156]
[1736178387024,3.0,3696.2,3695.4,0.156]
[1736178387025,2.70599,3695.5,3695.4,0.156]
[1736178389255,2.70621,3695.2,3694.9,1.6555]
[1736178389458,2.70621,3695.2,3695.0,0.156]
[1736178389633,2.70621,3695.2,3695.0,0.33715]
[1736178389828,2.70628,3695.1,3695.0,0.33715]
[1736178390035,2.70628,3695.1,3695.0,0.156]
[1736178390488,1.5113,3695.9,3694.6,1.11856085]
[1736178390489,1.5344,3695.2,3694.6,1.11856085]
[1736178390696,2.70657,3694.7,3694.6,1.27475538]
[1736178390985,2.70657,3694.7,3694.6,1.43075538]
[1736178391710,2.70657,3694.7,3694.6,0.05745539]
[1736178392005,2.70672,3694.5,3694.4,0.156]
[1736178393252,0.54459544,3695.1,3694.4,0.156]
[1736178393253,2.70655,3694.8,3694.4,0.156]
[1736178393453,2.70655,3694.8,3694.4,1.7293]
[1736178393687,1.12083618,3695.0,3694.6,1.5733]
[1736178393894,1.12083618,3695.0,3694.7,0.5575]
[1736178394100,1.12083618,3695.0,3694.8,13.531]
[1736178394399,0.55033258,3694.9,3694.6,1.5733]
[1736178394862,0.55033258,3694.9,3694.7,0.156]
[1736178395258,0.55033258,3694.9,3694.0,1.571]
[1736178395595,2.70657,3694.7,3694.1,0.156]
[1736178395996,2.70657,3694.7,3694.3,1.11856085]
[1736178396220,2.70679,3694.4,3694.3,1.11856085]
[1736178396424,2.70694,3694.2,3694.1,1.67784128]
[1736178397398,2.70701,3694.1,3694.0,0.156]
[1736178399312,0.53869428,3694.1,3693.3,1.5514]
[1736178399494,2.70745,3693.5,3693.4,0.156]
[1736178400000,2.70775,3693.1,3693.0,1.67784128]
[1736178400184,2.70775,3693.1,3693.0,0.98052877]
[1736178400371,2.70775,3693.1,3693.0,0.156]
[1736178400708,2.70804,3692.7,3692.6,0.98052877]
[1736178400915,2.70804,3692.7,3692.6,1.73793403]
[1736178401645,2.70736,3693.7,3692.7,1.6572]
[1736178401779,0.5303379,3692.9,3692.8,0.02707312]
[1736178401978,0.5303379,3692.9,3692.7,15.1962]
[1736178402693,2.70747,3693.5,3692.7,15.1962]
[1736178402834,2.70747,3693.5,3692.6,0.75740526]
[1736178402835,2.70747,3693.5,3692.8,2.15286053]
[1736178403056,2.70747,3693.5,3692.9,1.6179]
[1736178403201,2.70716,3694.0,3692.9,1.6179]
[1736178403202,0.53542897,3693.2,3692.9,1.6179]
[1736178404098,3.24311897,3693.2,3692.9,1.6179]
[1736178404828,0.53542897,3693.2,3692.9,1.6179]
[1736178405144,1.5901,3694.6,3693.4,0.55]
[1736178405339,2.71093618,3694.9,3693.8,0.5575]
[1736178405638,0.52833397,3694.3,3694.2,0.5575]
[1736178405839,2.70643,3694.9,3694.4,13.533]
[1736178406025,2.70643,3694.9,3694.2,0.7135]
[1736178406936,0.54853577,3694.5,3694.2,0.7135]
[1736178407138,0.54853577,3694.5,3694.3,13.77066]
[1736178407344,0.54853577,3694.5,3694.3,0.23766]
[1736178407683,3.25526577,3694.5,3694.3,0.23766]
[1736178407842,2.70687,3694.3,3694.2,0.156]
[1736178408245,0.54853577,3694.5,3694.2,0.156]
[1736178408464,2.70687,3694.3,3694.2,0.156]
[1736178408663,3.25525577,3694.5,3694.2,0.156]
[1736178409031,2.7068,3694.4,3694.2,0.156]
[1736178409369,0.54853577,3694.5,3694.3,1.529]
[1736178409530,0.54853577,3694.5,3694.3,1.6975]
[1736178410753,0.54853577,3694.5,3694.2,0.156]
[1736178410754,2.70687,3694.3,3694.2,0.156]
[1736178411468,2.70687,3694.3,3694.0,1.5071]
[1736178411677,2.70698,3694.2,3694.1,0.156]
[1736178412766,1.53934769,3694.4,3694.1,0.156]
[1736178412967,2.70694,3694.2,3694.1,0.156]
[1736178413533,2.70694,3694.2,3693.1,0.5575]
[1736178413534,2.70745,3693.5,3693.1,0.5575]
[1736178413734,2.70745,3693.5,3693.2,0.156]
[1736178414297,1.53934769,3694.4,3693.2,0.156]
[1736178414298,2.70758,3693.4,3693.2,0.156]
[1736178414440,2.73398769,3694.2,3693.2,0.156]
[1736178414640,2.70752,3693.5,3693.2,0.156]
[1736178414845,2.70752,3693.5,3693.2,0.44534916]
[1736178415083,2.70754,3693.4,3693.2,0.44534916]
[1736178415786,2.70721,3693.9,3693.3,0.55]
[1736178416688,2.70703,3694.1,3693.6,1.5044]
[1736178416989,2.70715,3694.0,3693.6,1.5044]
[1736178417195,2.70715,3694.0,3693.6,1.65559]
[1736178417712,2.70715,3694.0,3693.7,0.02706913]
[1736178418063,0.54442764,3693.8,3693.7,0.02706913]
[1736178418262,0.54442764,3693.8,3693.6,1.65559]
[1736178418263,3.25165764,3693.8,3693.6,1.5044]
[1736178418462,3.25165764,3693.8,3693.2,0.156]
[1736178418796,0.54442764,3693.8,3693.3,0.57707053]
[1736178419886,0.54442764,3693.8,3693.3,0.57706834]
[1736178420593,0.54442764,3693.8,3693.3,0.55]
[1736178420779,2.70747,3693.5,3693.4,0.156]
[1736178421880,2.70734,3693.7,3693.4,0.156]
[1736178422101,2.70739,3693.6,3693.4,0.156]
[1736178422405,2.70745,3693.5,3693.4,0.156]
[1736178422557,4.33545,3693.5,3693.4,0.156]
[1736178423295,4.33545,3693.5,3692.6,2.20390526]
[1736178423463,4.33545,3693.5,3693.4,0.156]
[1736178424582,2.70781,3693.1,3692.6,1.6025]
[1736178424934,2.70781,3693.1,3692.7,0.156]
[1736178425248,2.70745,3693.5,3692.7,0.156]
[1736178425527,2.70819,3692.5,3692.4,0.156]
[1736178426423,2.70855,3692.0,3691.9,1.11569159]
[1736178426599,2.70855,3692.0,3691.9,1.27169159]
[1736178427822,2.70855,3692.0,3691.9,0.156]
[1736178428100,2.70838,3692.3,3690.9,3.0]
[1736178428261,0.52876388,3692.5,3691.6,0.30875]
[1736178428600,2.70833,3692.3,3691.7,0.02708222]
[1736178428896,2.70875,3691.8,3691.6,0.30875]
[1736178429113,2.70875,3691.8,3691.6,0.156]
[1736178429413,2.70914,3691.2,3691.1,1.614]
[1736178429614,1.6349,3691.4,3690.7,1.11569159]
[1736178429821,2.70943,3690.8,3690.7,1.11569159]
[1736178430180,2.70936,3690.9,3690.5,1.11569159]
[1736178430416,2.70958,3690.6,3690.5,1.11569159]
[1736178430932,0.54972913,3690.8,3690.5,1.11569159]
[1736178431236,0.54972913,3690.8,3690.7,1.6477]
[1736178431413,0.54972913,3690.8,3690.6,0.28196339]
[1736178431794,0.54972913,3690.8,3690.7,0.02709146]
[1736178431997,0.54972913,3690.8,3690.3,0.5575]
[1736178432193,0.54972913,3690.8,3690.3,0.55]
[1736178432425,2.21402913,3690.8,3690.2,1.5618]
[1736178432578,2.7096,3690.6,3690.2,1.5618]
[1736178432779,2.7096,3690.6,3690.2,1.84211792]
[1736178433338,0.54972913,3690.8,3690.2,1.84211792]
[1736178433536,2.70959,3690.6,3690.2,1.84211792]
[1736178434182,2.70959,3690.6,3690.2,1.5618]
[1736178434605,0.54972913,3690.8,3690.2,1.5618]
[1736178434916,0.54972913,3690.8,3690.7,0.55]
[1736178435329,0.54972913,3690.8,3690.2,1.5618]
[1736178435511,3.25920913,3690.8,3690.2,1.5618]
[1736178435712,3.25920913,3690.8,3690.2,1.84211792]
[1736178435918,2.70952,3690.7,3690.2,1.84211792]
[1736178436240,2.70959,3690.6,3690.2,1.84211792]
[1736178436441,2.7097,3690.5,3690.2,1.84211792]
[1736178436653,2.10852913,3690.8,3690.0,1.08537925]
[1736178436654,2.70994,3690.2,3690.0,1.08537925]
[1736178436890,2.70994,3690.2,3690.1,0.156]
[1736178436998,2.70995,3690.1,3690.0,1.08537925]
[1736178437198,2.70995,3690.1,3690.0,1.24137925]
[1736178437400,4.23315,3690.1,3690.0,1.08537925]
[1736178437633,4.23315,3690.1,3690.0,1.24137925]
[1736178438610,4.77264767,3690.1,3690.0,1.24137925]
[1736178439300,4.77264767,3690.1,3690.0,0.156]
[1736178440116,4.77264767,3690.1,3689.8,0.156]
[1736178440451,4.77264767,3690.1,3689.2,0.156]
[1736178440452,1.6227,3689.9,3689.2,0.156]
[1736178440654,2.71035,3689.6,3689.2,0.156]
[1736178441141,2.71088,3688.9,3688.2,1.6047]
[1736178441346,2.71068,3689.2,3688.3,0.156]
[1736178441508,2.71069,3689.1,3688.4,0.20367606]
[1736178441705,2.71034,3689.6,3688.5,1.6047]
[1736178441937,2.71034,3689.6,3688.6,0.55]
[1736178442119,0.53189442,3689.2,3688.8,0.55]
[1736178442320,0.55135331,3689.3,3688.9,13.553]
[1736178442546,2.71063,3689.2,3689.0,1.3553]
[1736178442711,2.71063,3689.2,3688.5,1.6047]
[1736178442908,0.55135331,3689.3,3688.6,0.55]
[1736178443133,0.55135331,3689.3,3688.8,0.0075]
[1736178443409,0.55135331,3689.3,3689.0,0.55]
[1736178443746,0.55135331,3689.3,3688.9,1.5234]
[1736178443919,0.55135331,3689.3,3688.5,1.6247]
[1736178444330,2.71086,3688.9,3688.4,0.17657]
[1736178444530,2.71094,3688.8,3688.5,0.156]
[1736178444718,2.71094,3688.8,3688.4,0.17657]
[1736178444914,2.71094,3688.8,3688.5,0.156]
[1736178445150,2.71094,3688.8,3688.4,0.17657]
[1736178445355,2.71094,3688.8,3688.6,0.156]
[1736178446557,0.02704769,3689.2,3688.6,0.156]
[1736178446748,0.02704769,3689.2,3688.1,0.005]
[1736178446749,2.71105,3688.6,3688.5,0.156]
[1736178449018,2.71105,3688.6,3688.5,35.156]
[1736178449558,0.53801936,3688.7,3688.5,35.156]
[1736178449734,0.53801936,3688.7,3688.5,0.156]
[1736178450293,0.53801936,3688.7,3688.6,35.0]
[1736178450481,0.53801936,3688.7,3688.6,37.71757592]
[1736178450641,1.6497,3689.4,3688.6,37.71757592]
[1736178450985,0.55543505,3688.9,3688.7,0.57710438]
[1736178451127,0.55543505,3688.9,3688.7,13.553]
[1736178451321,0.55543505,3688.9,3688.8,35.0]
[1736178451648,2.71083,3688.9,3688.8,35.0]
[1736178452668,3.25580049,3688.9,3688.8,35.0]
[1736178452889,3.25580049,3688.9,3688.8,35.156]
[1736178453189,3.25580049,3688.9,3688.8,35.0]
[1736178454092,4.78550049,3688.9,3688.8,35.0]
[1736178454245,2.71134,3688.3,3687.8,1.6555]
[1736178454432,2.71105,3688.6,3688.5,0.156]
[1736178455397,2.71105,3688.6,3688.5,35.156]
[1736178455874,2.71099,3688.7,3688.5,36.04036978]
[1736178456074,2.71105,3688.6,3688.5,0.156]
[1736178456576,2.71105,3688.6,3688.5,35.156]
[1736178457157,2.71105,3688.6,3688.5,35.0]
[1736178458276,4.34785,3688.6,3688.5,35.0]
[1736178459685,2.71105,3688.6,3688.5,35.0]
[1736178459895,0.54497049,3688.9,3688.5,37.71757592]
[1736178460071,1.5581,3689.8,3688.6,0.02710636]
[1736178460241,2.71053,3689.4,3688.6,0.02710636]
[1736178460672,2.71034,3689.6,3689.3,35.0]
[1736178460981,0.02704769,3690.0,3689.2,1.5756]
[1736178461199,0.55081539,3689.7,3689.4,0.02710317]
[1736178461339,5.74909878,3691.0,3689.5,13.55]
[1736178461340,2.7098,3690.4,3689.5,13.55]
[1736178461706,2.70973,3690.4,3690.3,35.0]
[1736178462288,1.6244,3690.0,3689.0,0.156]
[1736178462584,2.71083,3688.9,3688.8,0.156]
[1736178463245,2.71083,3688.9,3688.8,35.156]
[1736178463688,0.52966772,3688.9,3688.8,35.156]
[1736178463891,3.24049772,3688.9,3688.8,35.156]
[1736178464620,3.24049772,3688.9,3688.8,0.156]
[1736178464755,2.71134,3688.2,3688.1,0.005]
[1736178464952,2.71134,3688.2,3688.1,0.161]
[1736178465564,2.71134,3688.2,3688.1,35.161]
[1736178465881,2.71134,3688.2,3688.1,35.005]
[1736178466460,2.71884,3688.2,3688.1,35.005]
[1736178466668,2.71208,3687.3,3687.0,1.6527]
[1736178466872,0.02704769,3688.1,3687.1,0.32127]
[1736178467089,2.7117,3687.8,3687.2,0.02711727]
[1736178467288,1.67754769,3688.4,3687.2,0.02711727]
[1736178467501,0.52907125,3687.7,3687.1,0.32127]
[1736178467658,0.52907125,3687.7,3687.2,0.02711728]
[1736178468019,0.52907125,3687.7,3687.3,0.156]
[1736178468166,3.24078125,3687.7,3687.6,35.0]
[1736178468499,0.52907125,3687.7,3687.6,35.0]
[1736178468686,2.71156,3688.0,3687.6,35.0]
[1736178468890,2.71156,3688.0,3687.3,0.156]
[1736178469103,0.54036023,3687.8,3687.4,0.02711468]
[1736178469337,0.54036023,3687.8,3687.7,35.0]
[1736178469471,0.54036023,3687.8,3687.0,1.6527]
[1736178469472,2.71226,3687.0,3686.2,0.156]
[1736178469668,2.71201,3687.3,3686.2,0.156]
[1736178469990,2.7123,3686.9,3686.2,0.156]
[1736178470207,2.71261,3686.5,3686.2,0.156]
[1736178470388,2.71261,3686.5,3686.4,35.0]
[1736178470631,2.71261,3686.5,3686.4,37.71757592]
[1736178471172,2.71261,3686.5,3686.4,37.87357592]
[1736178472095,3.2498245,3686.5,3686.4,37.87357592]
[1736178472809,3.2498245,3686.5,3686.4,37.71757592]
[1736178473006,3.2498245,3686.5,3686.4,35.156]
[1736178473496,3.2498245,3686.5,3686.4,35.0]
[1736178474307,2.71289,3686.1,3686.0,0.00271]
[1736178475136,2.71274,3686.4,3686.0,0.00271]
[1736178475346,0.5372145,3686.5,3686.3,35.0]
[1736178475628,3.03980878,3687.2,3686.3,35.0]
[1736178475629,2.71164,3687.8,3686.5,1.6521]
[1736178475913,0.53750809,3686.9,3686.5,1.6521]
[1736178476071,2.71225,3687.0,3686.6,0.02712196]
[1736178476272,2.71225,3687.0,3686.9,35.0]
[1736178477305,2.71225,3687.0,3686.9,35.156]
[1736178477306,3.25691981,3687.0,3686.9,35.156]
[1736178478368,0.54466981,3687.0,3686.9,37.87357592]
[1736178478973,3.25689981,3687.0,3686.9,37.87357592]
[1736178479173,3.25689981,3687.0,3686.9,35.156]
[1736178480400,3.25363635,3687.0,3686.9,35.0]
[1736178480586,3.25363635,3687.0,3686.9,35.156]
[1736178481111,2.71208,3687.3,3686.9,35.156]
[1736178481330,2.71181,3687.6,3687.0,0.02711937]
[1736178481526,0.5299666,3687.7,3687.1,1.6293]
[1736178481834,0.5299666,3687.7,3687.6,35.0]
[1736178482410,2.71121,3688.4,3687.7,1.507]
[1736178482615,2.71129,3688.3,3687.8,0.02711296]
[1736178482776,0.53444431,3688.2,3687.8,0.02711296]
[1736178482977,0.53444431,3688.2,3688.1,35.0]
[1736178483584,2.71083,3689.0,3688.1,35.0]
[1736178483792,2.71083,3689.0,3688.3,1.6644]
[1736178483983,2.71083,3689.0,3688.4,0.18310746]
[1736178483984,3.266485,3689.0,3688.4,0.18310746]
[1736178484198,2.7109,3688.9,3688.4,0.156]
[1736178484413,0.555655,3689.0,3688.5,0.18204]
[1736178484778,3.266415,3689.0,3688.9,35.0]
[1736178485122,0.555655,3689.0,3688.9,35.0]
[1736178485291,3.266415,3689.0,3688.9,35.0]
[1736178486639,1.5573,3689.6,3688.9,35.0]
[1736178486840,0.53276264,3689.2,3689.0,2.74468204]
[1736178487144,2.71033,3689.6,3688.7,1.6651]
[1736178487314,2.71017,3689.8,3689.5,35.0]
[1736178487515,3.25143672,3689.6,3689.5,35.0]
[1736178488943,3.25143672,3689.6,3688.5,0.18204]
[1736178488944,2.71105,3688.6,3688.5,0.18204]
[1736178489106,2.71105,3688.6,3687.9,0.1534113]
[1736178489107,2.71119,3688.5,3687.9,1.7469113]
[1736178489313,2.71119,3688.5,3688.0,0.157]
[1736178489537,2.71097,3688.8,3688.1,0.0271103]
[1736178489737,2.71098,3688.7,3688.1,0.0271103]
[1736178489937,2.71106,3688.6,3688.1,0.19310216]
[1736178490147,1.5436,3689.4,3688.1,0.19310216]
[1736178490148,2.71122,3688.4,3688.1,0.19310216]
[1736178490308,1.5616,3688.7,3688.2,0.157]
[1736178490514,2.71127,3688.3,3688.2,0.157]
[1736178491338,2.71114,3688.5,3688.2,0.157]
[1736178491526,2.71097,3688.8,3688.2,0.157]
[1736178491724,1.5396,3690.2,3688.6,1.5869]
[1736178491940,2.71045,3689.5,3688.7,1.59619458]
[1736178492134,1.12083618,3690.0,3688.7,0.02710458]
[1736178492135,2.71047,3689.4,3688.7,0.02710458]
[1736178492449,0.53941367,3689.3,3688.7,0.02710458]
[1736178493151,2.71036,3689.6,3688.6,1.5869]
[1736178493364,0.54700418,3689.5,3688.6,1.5869]
[1736178493660,2.71047,3689.4,3688.7,0.18579412]
[1736178493864,2.71069,3689.1,3688.7,0.15869]
[1736178494474,2.71054,3689.3,3688.7,0.15869]
[1736178494646,2.71054,3689.3,3688.8,0.02710479]
[1736178495363,2.71031,3689.7,3688.9,1.64]
[1736178495559,2.71023,3689.8,3689.0,0.20968149]
[1736178495747,2.71027,3689.7,3689.0,0.20968149]
[1736178495927,2.71027,3689.7,3689.0,0.18257948]
[1736178496130,2.71033,3689.6,3689.0,0.18257948]
[1736178496519,0.54835962,3689.8,3688.9,1.64]
[1736178496520,2.7107,3689.1,3688.9,1.64]
[1736178496720,0.02704769,3689.6,3688.9,1.64]
[1736178496958,2.71068,3689.1,3689.0,0.157]
[1736178497159,1.6062,3689.5,3689.0,0.157]
[1736178497486,2.71054,3689.3,3689.0,0.157]
[1736178497689,2.71028,3689.7,3689.1,13.552]
[1736178497871,2.71028,3689.7,3689.2,2.9971]
[1736178498198,2.71028,3689.7,3689.2,1.6262]
[1736178498395,2.71034,3689.6,3689.2,1.6262]
[1736178498695,2.71018,3689.8,3689.2,1.6262]
[1736178499037,0.5290334,3689.9,3689.2,1.6262]
[1736178499264,0.5290334,3689.9,3688.3,1.11569159]
[1736178499265,1.5233,3689.4,3688.3,1.11569159]
[1736178499539,2.7112,3688.4,3688.3,2.77419159]
[1736178499744,2.7112,3688.4,3688.3,1.27269159]
[1736178500800,2.7112,3688.4,3688.3,1.11569159]
[1736178500966,2.7112,3688.4,3688.3,1.27269159]
[1736178501165,2.7112,3688.4,3688.3,0.157]
[1736178502497,3.24142602,3688.4,3688.3,0.157]
[1736178502800,2.71164,3687.8,3687.7,1.5205]
[1736178503004,2.71127,3688.3,3687.7,1.82955]
[1736178503419,2.71157,3687.9,3687.7,1.67255]
[1736178503569,2.71144,3688.1,3687.8,0.157]
[1736178504179,0.53022602,3688.4,3687.8,0.18411366]
[1736178504468,2.71193,3687.4,3687.3,1.54541]
[1736178504665,2.71193,3687.4,3687.3,0.15971]
[1736178505492,2.71193,3687.4,3687.3,0.00271]
[1736178508127,3.24239714,3687.4,3687.3,0.00271]
[1736178509432,2.71236,3686.9,3686.0,1.6205]
[1736178509607,2.71279,3686.3,3686.1,0.157]
[1736178510315,2.71282,3686.2,3686.1,0.157]
[1736178510962,2.71268,3686.4,3685.9,1.87369158]
[1736178511108,2.71282,3686.2,3686.1,0.157]
[1736178512141,2.71282,3686.2,3685.9,1.87369158]
[1736178512142,2.71296,3686.0,3685.9,1.87369158]
[1736178512393,2.74000769,3686.0,3685.9,1.87369158]
[1736178513343,2.71296,3686.0,3685.9,1.87369158]
[1736178517842,2.74000769,3686.0,3685.9,1.87369158]
[1736178518039,2.71296,3686.0,3685.9,1.87369158]
[1736178522188,2.71259,3686.6,3685.9,1.87369158]
[1736178522189,0.55432991,3686.8,3686.0,15.2029]
[1736178522390,2.71237,3686.9,3686.1,0.02712312]
[1736178522593,3.25611696,3686.9,3686.1,0.02712312]
[1736178522762,0.54374696,3686.9,3686.1,0.02712312]
[1736178523095,4.31439,3687.4,3686.8,1.5608]
[1736178523096,2.71193,3687.4,3686.8,1.5608]
[1736178523394,0.54949974,3687.3,3686.9,1.51218]
[1736178523572,0.54949974,3687.3,3687.0,0.156]
[1736178523781,2.71215,3687.1,3687.0,0.156]
[1736178524398,4.25375,3687.1,3687.0,0.156]
[1736178524754,2.71215,3687.1,3687.0,0.156]
[1736178527267,3.26156974,3687.3,3687.0,0.156]
[1736178527684,0.54949974,3687.3,3687.0,0.156]
[1736178527879,1.30978423,3690.8,3687.1,13.559]
[1736178527880,1.5938,3688.1,3687.1,13.559]
[1736178528090,2.71164,3687.8,3687.2,0.02711655]
[1736178528306,2.71164,3687.8,3687.0,0.33009]
[1736178528959,0.54993313,3687.8,3687.0,0.33009]
[1736178529154,2.71187,3687.5,3687.1,0.491499]
[1736178529359,0.57698082,3687.8,3687.0,0.33009]
[1736178529656,0.54993313,3687.8,3687.1,0.02711698]
[1736178529996,2.71155,3688.0,3687.0,0.33009]
[1736178530292,2.73839769,3688.2,3687.3,1.6189]
[1736178530494,2.71108,3688.6,3687.3,1.6189]
[1736178530495,2.71125,3688.4,3687.4,0.24671521]
[1736178530831,4.28685,3688.9,3687.6,1.6189]
[1736178530832,0.54103611,3688.5,3687.6,1.6189]
[1736178531122,0.54103611,3688.5,3687.7,0.55]
[1736178531458,2.711,3688.7,3687.7,0.55]
[1736178531659,2.711,3688.7,3687.8,0.488068]
[1736178531916,0.54684087,3688.7,3687.9,0.02710972]
[1736178532109,2.71085,3688.9,3688.0,1.5239]
[1736178532307,2.71085,3688.9,3688.1,0.02710919]
[1736178532809,2.71106,3688.6,3688.0,1.5239]
[1736178533016,2.71137,3688.2,3688.1,0.156]
[1736178533518,0.02704769,3688.5,3688.1,0.156]
[1736178533837,1.66494769,3688.7,3688.1,0.156]
[1736178533978,2.7112,3688.4,3688.1,0.156]
[1736178534171,1.66494769,3688.7,3688.1,0.156]
[1736178534846,2.71134,3688.2,3688.1,0.156]
[1736178535924,0.02704769,3688.6,3688.1,0.156]